bitfinex/quotes_SOLUSD_20250609
["timestamp","ask_amount","ask_price","bid_price","bid_amount"]
[1749473607472,12.81029224,155.58,155.56,49.36]
[1749473607685,10.93277637,155.57,155.56,49.36]
[1749473612891,4.81441304,155.57,155.56,49.36]
[1749473613675,4.81441304,155.57,155.56,56.0727109]
[1749473614091,4.81441304,155.57,155.56,49.64432314]
[1749473620400,10.93277637,155.57,155.56,49.36]
[1749473621575,4.81441304,155.57,155.56,49.36]
[1749473621772,4.81441304,155.57,155.56,56.0727109]
[1749473622700,4.81441304,155.57,155.56,49.64432314]
[1749473622899,10.93277637,155.57,155.56,49.64432314]
[1749473625784,10.93277637,155.57,155.56,39.52432314]
[1749473627607,4.81441304,155.57,155.56,39.52432314]
[1749473629108,4.81441304,155.57,155.56,45.9527109]
[1749473633196,4.81441304,155.57,155.56,64.60235976]
[1749473633406,1.5683,155.58,155.57,18.64964886]
[1749473634309,1.5683,155.58,155.57,25.0776234]
[1749473635008,6.38466124,155.58,155.57,0.28432314]
[1749473635213,12.50302457,155.58,155.57,0.28432314]
[1749473636094,12.50302457,155.58,155.56,39.24]
[1749473636296,10.93472457,155.57,155.55,10.12]
[1749473636608,6.11836333,155.57,155.56,39.22]
[1749473636814,10.935022,155.57,155.56,39.22]
[1749473639322,10.935022,155.57,155.55,49.34]
[1749473639608,10.935022,155.56,155.55,49.34]
[1749473639824,4.81665867,155.56,155.55,49.34]
[1749473639987,4.81665867,155.56,155.55,55.76880102]
[1749473640493,4.81665867,155.56,155.55,49.34]
[1749473644925,4.81665867,155.56,155.55,55.76880102]
[1749473645427,4.81665867,155.56,155.55,49.34]
[1749473648429,10.935022,155.56,155.55,49.34]
[1749473652323,18.95670976,155.56,155.55,49.34]
[1749473652526,18.95670976,155.56,155.55,10.12]
[1749473653019,18.9556315,155.56,155.55,10.12]
[1749473654249,12.52724374,155.56,155.55,10.12]
[1749473655518,12.52724374,155.56,155.55,16.83312416]
[1749473655519,6.40888041,155.56,155.55,16.83312416]
[1749473656625,6.40888041,155.56,155.55,10.40432314]
[1749473656826,6.40888041,155.56,155.55,39.22]
[1749473657026,6.40888041,155.56,155.55,39.50432314]
[1749473659120,6.40888041,155.56,155.55,45.93312416]
[1749473666250,6.40888041,155.56,155.55,56.05312416]
[1749473668936,1.5933,155.56,155.55,56.05312416]
[1749473669455,6.40699661,155.56,155.55,56.05312416]
[1749473670637,1.5933,155.56,155.55,56.05312416]
[1749473671547,1.5933,155.56,155.55,80.82113635]
[1749473671741,4.81316787,155.59,155.56,0.28432314]
[1749473671945,14.11056333,155.6,155.56,0.28432314]
[1749473672144,4.81290926,155.59,155.56,6.40268647]
[1749473672438,14.11056333,155.6,155.58,0.28432314]
[1749473672642,14.11056333,155.6,155.59,39.2]
[1749473672852,18.92275413,155.6,155.59,39.2]
[1749473673846,18.92275413,155.6,155.59,45.62714827]
[1749473674855,18.92275413,155.6,155.59,39.2]
[1749473676788,18.92275413,155.6,155.59,45.62714827]
[1749473676949,12.54065413,155.6,155.59,45.62714827]
[1749473677740,12.54065413,155.6,155.59,39.2]
[1749473678153,12.54065413,155.6,155.59,45.62714827]
[1749473678154,6.4222908,155.6,155.59,45.62714827]
[1749473678543,12.54065413,155.6,155.59,45.62714827]
[1749473679460,6.4222908,155.6,155.59,45.91147141]
[1749473679643,6.4222908,155.6,155.59,64.56112027]
[1749473679644,1.6101,155.6,155.59,64.56112027]
[1749473687958,1.6101,155.6,155.59,70.6794836]
[1749473689845,1.6101,155.6,155.59,64.56112027]
[1749473690055,7.72846333,155.6,155.59,49.28]
[1749473690658,7.72846333,155.6,155.59,49.56432314]
[1749473691376,7.72846333,155.6,155.59,55.99147141]
[1749473692452,7.72846333,155.6,155.59,49.28]
[1749473692856,7.72846333,155.6,155.59,10.1]
[1749473693053,1.5194,155.58,155.55,10.1]
[1749473693260,6.11836333,155.56,155.55,10.1]
[1749473695375,15.92263183,155.56,155.55,10.1]
[1749473695781,11.1225437,155.56,155.55,10.1]
[1749473696153,15.92263183,155.56,155.55,10.1]
[1749473697681,1.5707,155.56,155.55,10.1]
[1749473697875,11.1225437,155.56,155.55,10.1]
[1749473698254,15.92263183,155.56,155.55,10.1]
[1749473699319,11.1225437,155.56,155.55,10.1]
[1749473700554,17.55093146,155.56,155.55,10.1]
[1749473700776,22.35101959,155.56,155.55,10.1]
[1749473700977,17.55093146,155.56,155.55,10.1]
[1749473701280,11.1225437,155.56,155.55,10.1]
[1749473702675,1.5707,155.56,155.55,10.1]
[1749473702965,11.1225437,155.56,155.55,10.1]
[1749473703790,1.5707,155.56,155.55,16.81312416]
[1749473704382,1.5707,155.56,155.55,35.46277302]
[1749473709689,1.5707,155.56,155.55,45.01461672]
[1749473709997,11.0967437,155.6,155.57,0.28432314]
[1749473710298,11.0967437,155.6,155.58,39.18]
[1749473711694,1.5449,155.6,155.59,6.42714827]
[1749473712194,1.5449,155.6,155.59,6.71147141]
[1749473712400,1.5449,155.6,155.59,16.81147141]
[1749473715194,11.0967437,155.6,155.59,10.38432314]
[1749473720891,11.0967437,155.6,155.59,10.1]
[1749473721703,11.0967437,155.6,155.59,16.52714827]
[1749473722001,11.0967437,155.6,155.59,16.81147141]
[1749473722177,1.5449,155.6,155.59,16.81147141]
[1749473722376,11.0967437,155.6,155.59,16.81147141]
[1749473724803,1.5449,155.6,155.59,35.46112027]
[1749473727695,1.5449,155.6,155.59,45.00215558]
[1749473729007,9.54103531,155.64,155.6,0.14216157]
[1749473729326,11.06783531,155.64,155.62,0.28432314]
[1749473729478,11.06783531,155.64,155.62,39.44432314]
[1749473729678,11.06783531,155.64,155.63,6.42549636]
[1749473734100,11.06783531,155.64,155.62,45.58577137]
[1749473734285,9.54103531,155.63,155.62,45.58577137]
[1749473745996,9.54103531,155.63,155.62,39.16]
[1749473746190,1.5107,155.62,155.58,6.42756138]
[1749473746390,9.54103531,155.59,155.58,45.58756138]
[1749473746597,9.54103531,155.59,155.58,45.87188452]
[1749473747412,6.10866862,155.59,155.58,45.87188452]
[1749473749214,6.10866862,155.59,155.55,18.64964886]
[1749473749215,1.6114,155.58,155.55,18.64964886]
[1749473749392,9.54807441,155.56,155.55,6.42845074]
[1749473749602,9.54807441,155.57,155.55,6.71277388]
[1749473749914,9.54807441,155.57,155.55,45.56845074]
[1749473750500,11.15947441,155.58,155.55,45.56845074]
[1749473753198,9.54807441,155.57,155.55,45.56845074]
[1749473756313,9.54807441,155.56,155.55,45.56845074]
[1749473756713,9.54807441,155.56,155.55,6.42845074]
[1749473757323,9.54807441,155.56,155.54,45.87353068]
[1749473757522,9.54807441,155.55,155.54,45.87353068]
[1749473757721,9.54807441,155.55,155.54,6.71353068]
[1749473757911,9.54807441,155.55,155.54,64.52317954]
[1749473758117,11.21037441,155.55,155.54,58.093972]
[1749473758313,1.6623,155.55,155.54,64.52318635]
[1749473760710,11.21037441,155.55,155.54,64.52318635]
[1749473760909,11.21037441,155.55,155.54,58.093972]
[1749473761112,11.21037441,155.55,155.53,10.08]
[1749473761349,1.6623,155.55,155.53,10.08]
[1749473761518,9.54807441,155.54,155.53,16.50962772]
[1749473761839,9.54807441,155.54,155.53,10.08]
[1749473763143,1.6059,155.53,155.48,10.08]
[1749473763329,11.15397441,155.49,155.48,10.08]
[1749473766435,17.58525616,155.49,155.48,10.08]
[1749473766639,11.15397441,155.49,155.48,10.08]
[1749473767015,1.6059,155.49,155.48,10.08]
[1749473767216,11.15397441,155.49,155.48,10.08]
[1749473768019,17.58525616,155.49,155.48,10.08]
[1749473768220,11.15397441,155.49,155.48,10.08]
[1749473769626,1.6059,155.49,155.48,10.08]
[1749473770040,11.15397441,155.49,155.48,10.08]
[1749473770237,1.6059,155.49,155.48,16.51169539]
[1749473770546,1.6059,155.49,155.48,35.44566739]
[1749473773824,1.5955,155.53,155.5,0.28432314]
[1749473774150,11.14357441,155.53,155.51,18.64964886]
[1749473774849,11.14357441,155.53,155.51,25.07989436]
[1749473775052,1.5955,155.53,155.51,25.07989436]
[1749473776636,1.5955,155.53,155.52,0.28432314]
[1749473778345,1.5955,155.53,155.52,25.36401315]
[1749473787471,1.5955,155.53,155.52,18.933972]
[1749473788459,11.14357441,155.53,155.51,18.933972]
[1749473790375,11.14357441,155.53,155.51,25.3644012]
[1749473790947,1.5955,155.53,155.51,25.3644012]
[1749473791670,1.5955,155.53,155.51,64.5244012]
[1749473793564,1.5955,155.53,155.51,74.07247561]
[1749473793766,1.5955,155.53,155.51,64.5244012]
[1749473794078,1.5955,155.53,155.51,74.07247561]
[1749473794291,1.5955,155.53,155.52,9.83239755]
[1749473794493,11.08497441,155.57,155.54,0.28432314]
[1749473794669,1.5369,155.57,155.55,39.16]
[1749473795487,1.5369,155.57,155.56,6.42838776]
[1749473797167,1.5369,155.57,155.56,34.91043417]
[1749473797662,1.6652,155.62,155.57,18.933972]
[1749473797862,6.30115595,155.66,155.61,18.933972]
[1749473798061,4.77975595,155.65,155.62,39.16]
[1749473798283,9.54807441,155.63,155.62,39.16]
[1749473799420,4.77975595,155.65,155.62,39.16]
[1749473799421,9.54807441,155.64,155.63,6.42549636]
[1749473800060,9.54807441,155.64,155.62,39.16]
[1749473800267,9.54807441,155.64,155.62,45.58573993]
[1749473800478,11.06947441,155.66,155.62,55.13381434]
[1749473800882,11.06947441,155.66,155.63,18.933972]
[1749473801515,11.06947441,155.66,155.64,6.42508352]
[1749473802314,11.06947441,155.66,155.63,25.35933685]
[1749473803210,9.54807441,155.65,155.63,25.35933685]
[1749473805010,9.54807441,155.65,155.63,18.933972]
[1749473805206,9.54807441,155.64,155.62,39.16]
[1749473805416,9.54807441,155.63,155.62,57.80964886]
[1749473805600,9.54807441,155.63,155.62,39.14]
[1749473807929,9.54807441,155.63,155.61,16.50628675]
[1749473808131,7.94574183,155.66,155.62,39.14]
[1749473809406,9.54807441,155.63,155.62,39.14]
[1749473820115,7.94581219,155.66,155.62,39.14]
[1749473820436,9.54807441,155.63,155.62,45.5658898]
[1749473821330,9.54807441,155.64,155.62,45.5658898]
[1749473822422,9.54807441,155.65,155.62,45.5658898]
[1749473823535,1.5214,155.66,155.63,18.933972]
[1749473823716,9.54807441,155.65,155.63,18.933972]
[1749473823919,9.54807441,155.64,155.63,18.933972]
[1749473824941,9.54807441,155.64,155.63,25.35946836]
[1749473827326,9.54807441,155.64,155.63,18.933972]
[1749473829751,9.54807441,155.64,155.63,28.993972]
[1749473830248,1.5214,155.66,155.63,28.993972]
[1749473830426,9.54807441,155.64,155.63,28.993972]
[1749473830629,9.54807441,155.64,155.63,35.41946836]
[1749473834844,9.54807441,155.64,155.63,28.993972]
[1749473835232,1.5214,155.66,155.63,35.41946836]
[1749473835440,6.10512584,155.64,155.63,35.41946836]
[1749473836245,1.5214,155.66,155.63,35.41946836]
[1749473836246,6.10512584,155.65,155.63,35.41946836]
[1749473838355,6.10512584,155.64,155.63,35.41946836]
[1749473839464,6.10512584,155.64,155.63,10.06]
[1749473841141,6.10512584,155.64,155.63,16.48549636]
[1749473842354,10.91600974,155.64,155.63,16.48549636]
[1749473842545,6.10512584,155.64,155.63,16.48549636]
[1749473843459,10.91634918,155.64,155.63,16.48549636]
[1749473843659,6.10512584,155.64,155.63,16.48549636]
[1749473844067,1.5214,155.66,155.63,16.48549636]
[1749473844253,6.10512584,155.64,155.63,16.48549636]
[1749473845070,4.81131728,155.64,155.63,16.48549636]
[1749473845975,6.10512584,155.65,155.63,16.48549636]
[1749473849510,6.10512584,155.64,155.63,16.48549636]
[1749473849660,6.10512584,155.65,155.63,16.7698195]
[1749473850585,6.10512584,155.65,155.63,35.41946836]
[1749473852170,10.91659626,155.64,155.63,35.41946836]
[1749473854153,6.10512584,155.64,155.63,35.41946836]
[1749473854558,10.91714315,155.64,155.63,35.41946836]
[1749473856072,4.81201731,155.64,155.63,35.41946836]
[1749473856389,6.10512584,155.65,155.63,35.41946836]
[1749473856699,4.81242583,155.64,155.63,35.41946836]
[1749473856865,6.10512584,155.65,155.63,35.41946836]
[1749473857179,4.81241033,155.64,155.63,35.41946836]
[1749473857669,1.5214,155.66,155.65,0.28432314]
[1749473857981,6.10512584,155.69,155.67,0.28432314]
[1749473858181,6.10512584,155.69,155.68,49.18]
[1749473858390,10.91734347,155.69,155.68,49.18]
[1749473859760,4.81221763,155.69,155.68,49.18]
[1749473859956,10.91734347,155.69,155.68,49.18]
[1749473860768,10.91734347,155.69,155.68,49.16]
[1749473860972,4.81221763,155.69,155.68,49.16]
[1749473861172,10.91734347,155.69,155.68,49.16]
[1749473862282,13.32140953,155.69,155.68,49.16]
[1749473862465,13.32139072,155.69,155.68,49.16]
[1749473862667,13.32145096,155.69,155.68,49.16]
[1749473862982,10.91734347,155.69,155.68,49.16]
[1749473863184,13.32139622,155.69,155.68,49.16]
[1749473863488,13.32137895,155.69,155.68,49.16]
[1749473863692,7.21625311,155.69,155.68,74.51740468]
[1749473863871,1.5017,155.7,155.69,18.933972]
[1749473864067,8.71218821,155.7,155.69,18.933972]
[1749473864569,3.91088371,155.7,155.69,18.933972]
[1749473864766,4.80506419,155.71,155.69,25.03909784]
[1749473864971,4.80506419,155.73,155.7,6.10512584]
[1749473865184,7.75892584,155.74,155.72,0.28432314]
[1749473865384,7.75892584,155.74,155.73,10.06]
[1749473865587,12.56084853,155.74,155.73,10.06]
[1749473865778,14.96981052,155.74,155.73,10.06]
[1749473866090,12.56084853,155.74,155.73,10.06]
[1749473866479,14.96968175,155.74,155.73,10.06]
[1749473866785,14.96968173,155.74,155.73,10.06]
[1749473866982,14.9696844,155.74,155.73,10.06]
[1749473867179,12.56084853,155.74,155.73,10.06]
[1749473867385,11.180382,155.74,155.73,10.06]
[1749473868090,13.58914799,155.74,155.73,10.06]
[1749473868272,4.06256599,155.74,155.73,10.06]
[1749473868478,1.6538,155.74,155.73,10.06]
[1749473868868,1.6538,155.74,155.73,35.41534232]
[1749473869079,4.06242945,155.74,155.73,35.41534232]
[1749473869284,1.6538,155.74,155.73,28.993972]
[1749473872990,1.6538,155.74,155.73,35.41534232]
[1749473873486,1.6538,155.74,155.73,28.993972]
[1749473876700,1.5968,155.79,155.74,18.933972]
[1749473876906,1.5968,155.79,155.77,0.28432314]
[1749473877077,1.5968,155.79,155.78,28.993972]
[1749473877486,11.123382,155.79,155.78,28.993972]
[1749473878803,11.123382,155.79,155.78,35.41328128]
[1749473879302,11.123382,155.79,155.78,39.08]
[1749473880104,1.5968,155.79,155.78,18.933972]
[1749473880277,1.5968,155.79,155.78,77.580554]
[1749473880604,1.5968,155.79,155.78,68.053972]
[1749473881101,1.5968,155.79,155.78,74.47328128]
[1749473881407,1.5968,155.79,155.78,77.62163885]
[1749473882081,1.5968,155.79,155.78,74.47328128]
[1749473885507,9.41259261,155.8,155.78,87.16450791]
[1749473885693,9.41259261,155.8,155.79,28.460554]
[1749473886585,9.41259261,155.8,155.79,34.87945123]
[1749473888109,9.41259261,155.8,155.79,60.87945123]
[1749473888614,9.41259261,155.8,155.79,44.40603323]
[1749473888809,1.5008,155.88,155.87,18.64964886]
[1749473889009,1.5008,155.88,155.87,77.560554]
[1749473889398,1.5644,155.87,155.8,87.7]
[1749473889594,9.526582,155.84,155.82,18.79181043]
[1749473889796,9.526582,155.84,155.83,0.14216157]
[1749473890494,9.526582,155.84,155.83,6.55941113]
[1749473890709,9.526582,155.86,155.84,0.14216157]
[1749473893510,9.526582,155.86,155.84,6.41683549]
[1749473893688,9.526582,155.86,155.83,6.70147453]
[1749473895000,1.5644,155.87,155.83,16.22805653]
[1749473895198,11.090982,155.87,155.83,16.22805653]
[1749473895714,9.526582,155.86,155.83,6.70147453]
[1749473896219,1.5644,155.87,155.83,16.22805653]
[1749473896398,11.090982,155.87,155.83,16.22805653]
[1749473896795,1.5644,155.87,155.83,16.22805653]
[1749473897117,11.090982,155.87,155.83,16.22805653]
[1749473897502,1.5644,155.87,155.84,9.526582]
[1749473897816,1.5644,155.87,155.85,0.14216157]
[1749473898032,1.5644,155.87,155.86,49.12]
[1749473899597,1.5644,155.87,155.86,55.67817594]
[1749473899809,11.090982,155.87,155.86,55.67817594]
[1749473900691,1.5644,155.87,155.86,55.67817594]
[1749473902717,1.0644,155.87,155.86,55.67817594]
[1749473903055,10.590982,155.87,155.86,49.26216157]
[1749473903204,10.590982,155.87,155.84,39.08]
[1749473903398,1.0644,155.87,155.86,0.14216157]
[1749473903594,10.590982,155.87,155.83,10.04]
[1749473903799,1.0644,155.87,155.85,39.12]
[1749473904303,9.526582,155.86,155.85,39.12]
[1749473905223,9.526582,155.86,155.85,45.53642605]
[1749473905426,9.526582,155.86,155.85,39.12]
[1749473906104,10.590982,155.87,155.85,45.53642605]
[1749473906301,1.0644,155.87,155.85,45.53642605]
[1749473907328,10.590982,155.87,155.85,39.12]
[1749473907506,9.526582,155.86,155.85,45.67858762]
[1749473907708,10.590982,155.87,155.85,45.67858762]
[1749473910033,1.0644,155.87,155.85,45.67858762]
[1749473910603,1.0644,155.87,155.86,18.933972]
[1749473910812,1.0644,155.87,155.86,28.460554]
[1749473911041,1.0644,155.87,155.86,67.560554]
[1749473911330,1.0644,155.87,155.86,73.97656837]
[1749473914917,2.3778024,155.91,155.86,90.01660429]
[1749473915125,2.3778024,155.91,155.88,18.933972]
[1749473915321,2.3778024,155.91,155.89,10.04]
[1749473915638,11.9043844,155.91,155.9,39.08]
[1749473918235,2.3778024,155.91,155.9,64.42834018]
[1749473920833,11.9043844,155.91,155.9,10.04]
[1749473921035,18.31834116,155.91,155.86,10.06]
[1749473921242,9.526582,155.87,155.86,10.06]
[1749473921540,11.169082,155.87,155.84,16.4766921]
[1749473921722,9.526582,155.86,155.85,39.08]
[1749473924631,11.169082,155.87,155.85,45.49642605]
[1749473926441,9.526582,155.86,155.85,39.08]
[1749473927235,9.526582,155.86,155.84,10.06]
[1749473927539,9.526582,155.85,155.84,10.06]
[1749473930731,14.32009323,155.85,155.84,10.06]
[1749473931158,9.526582,155.85,155.84,10.06]
[1749473931346,14.32009323,155.85,155.84,10.06]
[1749473931553,9.526582,155.85,155.84,10.06]
[1749473931864,22.28241617,155.85,155.8,16.47834615]
[1749473932147,7.96132605,155.85,155.82,39.06]
[1749473932649,7.96132605,155.85,155.81,39.06]
[1749473933254,9.526582,155.82,155.81,39.06]
[1749473936839,7.96132987,155.85,155.81,39.06]
[1749473937142,9.526582,155.82,155.81,39.06]
[1749473941340,9.526582,155.82,155.81,45.47807329]
[1749473942059,9.526582,155.83,155.81,45.47807329]
[1749473942654,9.526582,155.83,155.81,39.06]
[1749473942959,9.526582,155.83,155.81,45.47806867]
[1749473946061,1.5449,155.85,155.81,45.47806867]
[1749473946267,1.5449,155.85,155.82,0.14216157]
[1749473946965,1.5449,155.85,155.83,6.41724956]
[1749473947755,11.071482,155.85,155.83,6.41724956]
[1749473950357,1.5449,155.85,155.83,6.41724956]
[1749473950754,1.5449,155.85,155.84,0.14216157]
[1749473951570,1.5449,155.85,155.84,6.55899935]
[1749473954368,11.071482,155.85,155.82,18.79181043]
[1749473954633,9.526582,155.84,155.83,0.14216157]
[1749473955551,9.526582,155.84,155.82,6.55960177]
[1749473955775,9.526582,155.83,155.82,0.14216157]
[1749473956973,9.526582,155.84,155.82,0.14216157]
[1749473957964,9.526582,155.84,155.82,6.55969374]
[1749473960483,9.526582,155.84,155.82,16.59969374]
[1749473962474,9.526582,155.84,155.82,10.18216157]
[1749473962776,9.526582,155.84,155.82,16.5998181]
[1749473966571,25.56641287,155.92,155.84,0.14216157]
[1749473966894,14.32757786,155.89,155.86,0.14216157]
[1749473967091,4.80099586,155.88,155.86,0.14216157]
[1749473967287,9.526582,155.89,155.86,0.14216157]
[1749473967491,4.8006677,155.88,155.86,0.14216157]
[1749473967692,11.064482,155.87,155.85,39.04]
[1749473967890,11.064482,155.87,155.85,45.45623543]
[1749473968590,9.526582,155.86,155.85,39.04]
[1749473970504,9.526582,155.86,155.82,36.04]
[1749473970800,9.526582,155.84,155.83,39.04]
[1749473972093,14.32977445,155.84,155.83,39.04]
[1749473972400,14.32977445,155.84,155.82,10.04]
[1749473972601,15.89693203,155.83,155.82,49.08]
[1749473972983,15.89693203,155.83,155.82,10.04]
[1749473982399,15.89693203,155.83,155.8,45.4584172]
[1749473982598,9.526582,155.82,155.8,45.4584172]
[1749473987317,6.09124406,155.82,155.8,45.4584172]
[1749473989524,6.09124406,155.82,155.8,39.04]
[1749473990025,6.09124406,155.82,155.8,0.14216157]
[1749473990202,6.09124406,155.82,155.81,39.06]
[1749473991813,6.09124406,155.82,155.81,45.47807329]
[1749473994807,6.09124406,155.82,155.81,6.41807329]
[1749473995006,6.09124406,155.82,155.81,45.47807329]
[1749473997509,10.88984513,155.82,155.81,45.47807329]
[1749473999232,10.88984513,155.82,155.81,39.06]
[1749474000637,4.79860107,155.82,155.81,39.06]
[1749474000835,7.65824406,155.83,155.81,45.47807329]
[1749474002046,7.65824406,155.83,155.81,39.06]
[1749474002250,7.65824406,155.83,155.81,45.47800329]
[1749474002431,4.79881836,155.82,155.81,45.47800329]
[1749474002838,4.79882658,155.82,155.81,45.47800329]
[1749474003031,7.65824406,155.83,155.81,45.47800329]
[1749474003230,4.79887854,155.82,155.81,39.06]
[1749474004046,10.8901226,155.82,155.8,10.04]
[1749474004352,10.89056416,155.81,155.78,39.04]
[1749474004521,6.09124406,155.79,155.78,39.04]
[1749474004726,6.09124406,155.8,155.78,39.04]
[1749474005922,6.09124406,155.8,155.78,45.45921684]
[1749474007747,10.888364,155.8,155.78,45.45921684]
[1749474008046,6.09124406,155.8,155.78,45.45921684]
[1749474008630,6.09124406,155.81,155.78,45.45921684]
[1749474009449,10.88769926,155.81,155.78,45.45921684]
[1749474009623,6.09124406,155.81,155.78,45.45921684]
[1749474009827,10.88769926,155.81,155.78,45.45921684]
[1749474010028,6.09124406,155.81,155.78,45.45921684]
[1749474010227,4.7964552,155.81,155.78,45.45921684]
[1749474010429,4.7964552,155.82,155.79,18.79181043]
[1749474010728,4.7963573,155.81,155.79,18.79181043]
[1749474010928,10.88760136,155.81,155.79,18.79181043]
[1749474011136,6.09124406,155.8,155.78,45.45921684]
[1749474011834,10.88767725,155.8,155.78,45.45921684]
[1749474012032,4.79643319,155.82,155.79,24.88305449]
[1749474012238,4.79630616,155.82,155.81,6.09124406]
[1749474012438,1.567,155.83,155.81,6.09124406]
[1749474012729,1.5514,155.87,155.83,18.79181043]
[1749474012949,1.5514,155.87,155.86,6.09124406]
[1749474013156,1.5514,155.87,155.86,63.94305449]
[1749474013664,1.5514,155.87,155.86,70.35906886]
[1749474013858,1.5514,155.87,155.86,64.2678248]
[1749474014036,1.5514,155.87,155.86,70.35906886]
[1749474015360,1.5514,155.87,155.86,73.77498039]
[1749474017266,4.79396002,155.9,155.87,18.79181043]
[1749474017450,11.84395799,155.91,155.87,38.33896602]
[1749474017761,7.13076242,155.91,155.88,9.50715559]
[1749474018062,2.3368024,155.91,155.89,6.41462857]
[1749474018256,2.3368024,155.91,155.9,39.04]
[1749474021156,2.3368024,155.91,155.9,45.45436818]
[1749474021662,2.3368024,155.91,155.9,64.24617861]
[1749474021862,2.3368024,155.91,155.9,73.89549577]
[1749474031858,0.7623024,155.91,155.9,73.89549577]
[1749474037866,0.7623024,155.91,155.9,83.93549577]
[1749474040176,0.7623024,155.91,155.9,74.42834018]
[1749474040358,1.6525,155.9,155.89,28.68964886]
[1749474040558,1.6525,155.9,155.89,67.70964886]
[1749474040763,1.6525,155.9,155.89,67.85181043]
[1749474042293,1.6525,155.9,155.89,74.26659008]
[1749474042468,11.15965559,155.9,155.85,6.41642605]
[1749474042791,1.6657,155.87,155.84,39.02]
[1749474043285,1.6657,155.87,155.82,10.04]
[1749474043577,1.6657,155.87,155.82,49.06]
[1749474043888,9.50715559,155.84,155.82,55.47756083]
[1749474044792,9.50715559,155.83,155.82,49.06]
[1749474045681,9.50715559,155.83,155.82,55.4776614]
[1749474046389,9.50715559,155.84,155.82,55.4776614]
[1749474046993,1.6657,155.87,155.83,18.79181043]
[1749474047210,11.17285559,155.87,155.83,18.79181043]
[1749474047400,1.6657,155.87,155.83,28.29896602]
[1749474048378,1.6657,155.87,155.84,6.41683778]
[1749474048591,1.6657,155.87,155.85,28.29896602]
[1749474048803,1.6657,155.87,155.86,57.81181043]
[1749474049495,1.6657,155.87,155.86,64.2278248]
[1749474050311,1.6657,155.87,155.86,73.87714196]
[1749474051818,8.3188024,155.91,155.87,18.933972]
[1749474051997,8.3188024,155.91,155.89,18.79181043]
[1749474052243,8.3188024,155.91,155.9,39.04]
[1749474053098,2.2636024,155.91,155.9,39.04]
[1749474053611,2.2636024,155.91,155.9,45.45436818]
[1749474054796,2.2636024,155.91,155.9,64.24617861]
[1749474055009,2.2636024,155.91,155.9,64.38834018]
[1749474055194,2.2636024,155.91,155.9,77.34956964]
[1749474056318,15.22483186,155.91,155.9,39.04]
[1749474056517,15.22483186,155.91,155.9,39.02]
[1749474057621,19.99003581,155.91,155.9,39.02]
[1749474058921,15.22483186,155.91,155.9,39.02]
[1749474059322,19.99003581,155.91,155.9,39.02]
[1749474059495,15.22483186,155.91,155.9,39.02]
[1749474065914,19.99003581,155.91,155.88,49.06]
[1749474066141,12.96122946,155.89,155.88,49.06]
[1749474066337,1.6498,155.88,155.86,39.02]
[1749474066515,12.96122946,155.87,155.84,10.04]
[1749474066832,12.96122946,155.86,155.84,49.06]
[1749474067708,12.96122946,155.86,155.84,55.47667731]
[1749474068733,12.96122946,155.86,155.84,49.06]
[1749474069035,12.96122946,155.86,155.84,10.04]
[1749474069215,12.96122946,155.86,155.84,49.08]
[1749474070921,6.41500395,155.88,155.84,55.49682334]
[1749474071130,12.96122946,155.87,155.84,55.49682334]
[1749474071330,1.6498,155.88,155.84,55.49682334]
[1749474071520,12.96122946,155.87,155.84,55.49682334]
[1749474071832,14.61102946,155.88,155.84,55.49682334]
[1749474072509,8.06501944,155.88,155.84,49.08]
[1749474072711,8.06501944,155.88,155.84,10.04]
[1749474072712,12.96122946,155.85,155.84,10.04]
[1749474079251,12.96122946,155.86,155.84,10.04]
[1749474079544,12.96122946,155.86,155.84,16.45681404]
[1749474081916,12.96122946,155.86,155.84,10.04]
[1749474083346,12.96122946,155.85,155.84,10.04]
[1749474084744,4.76520395,155.87,155.84,10.04]
[1749474084952,6.41500395,155.88,155.84,16.4567074]
[1749474085125,14.61102946,155.88,155.84,29.41793686]
[1749474085640,14.61102946,155.88,155.84,16.4567074]
[1749474085837,12.96122946,155.86,155.84,10.04]
[1749474086049,12.96122946,155.85,155.82,57.91181043]
[1749474087127,12.96122946,155.85,155.82,64.32924727]
[1749474087834,14.55052946,155.83,155.81,10.08]
[1749474088037,14.55052946,155.83,155.81,49.18]